fUSD/lending_fUSD_20241110
["ID","MTS","AMOUNT","RATE_DAILY","PERIOD"]
[341876089,1731262245159,-4817.45,0.00013698,2]
[341876091,1731262245169,-4817.45,0.00013698,2]
[341876092,1731262245178,-4817.45,0.00013698,2]
[341876093,1731262245189,-2421.43,0.00013698,2]
[341876094,1731262245198,-4817.45,0.00013698,2]
[341876095,1731262245208,-4817.45,0.00013698,2]
[341876096,1731262245218,-2421.43,0.00013698,2]
[341876097,1731262245231,-2421.43,0.00013698,2]
[341876098,1731262245242,-4817.45,0.00013698,2]
[341876099,1731262245252,-2421.43,0.00013698,2]
[341876100,1731262245263,-4817.45,0.00013698,2]
[341876101,1731262245273,-2421.43,0.00013698,2]
[341876102,1731262245283,-2421.43,0.00013698,2]
[341876103,1731262245292,-4817.45,0.00013698,2]
[341876104,1731262245302,-4715.5111604,0.00013698,2]
[341876131,1731262245582,-101.9388396,0.00013698,2]
[341876132,1731262245592,-2421.43,0.00013698,2]
[341876133,1731262245603,-2421.43,0.00013698,2]
[341876134,1731262245612,-4817.45,0.00013698,2]
[341876135,1731262245623,-4817.45,0.00013698,2]
[341876136,1731262245632,-1583.1623604,0.00013698,2]
[341876137,1731262245645,-838.2676396,0.00013698,2]
[341876138,1731262245654,-124.2598254,0.00013698,2]
[341876139,1731262245666,-4693.1901746,0.00013698,2]
[341876140,1731262245676,-794.38,0.00013698,2]
[341876141,1731262245685,-2421.43,0.00013698,2]
[341876142,1731262245696,-2421.43,0.00013698,2]
[341876143,1731262245705,-794.38,0.00013698,2]
[341876144,1731262245714,-4817.45,0.00013698,2]
[341876145,1731262245723,-794.38,0.00013698,2]
[341876146,1731262245736,-2421.43,0.00013698,2]
[341876147,1731262245746,-2421.43,0.00013698,2]
[341876148,1731262245757,-4817.45,0.00013698,2]
[341876150,1731262245768,-794.38,0.00013698,2]
[341876152,1731262245778,-2421.43,0.00013698,2]
[341876154,1731262245789,-4817.45,0.00013698,2]
[341876156,1731262245799,-794.38,0.00013698,2]
[341876157,1731262245808,-2421.43,0.00013698,2]
[341876158,1731262245818,-794.38,0.00013698,2]
[341876159,1731262245829,-2421.43,0.00013698,2]
[341876160,1731262245840,-794.38,0.00013698,2]
[341876161,1731262245851,-2421.43,0.00013698,2]
[341876162,1731262245863,-794.38,0.00013698,2]
[341876163,1731262245873,-794.38,0.00013698,2]
[341876164,1731262245884,-794.38,0.00013698,2]
[341876165,1731262245894,-794.38,0.00013698,2]
[341876166,1731262245904,-794.38,0.00013698,2]
[341876167,1731262245914,-794.38,0.00013698,2]
[341876168,1731262245924,-794.38,0.00013698,2]
[341876169,1731262245935,-794.38,0.00013698,2]
[341876170,1731262245945,-794.38,0.00013698,2]
[341876172,1731262245956,-794.38,0.00013698,2]
[341876174,1731262245967,-1389.92,0.00013698,2]
[341876176,1731262245980,-500.0,0.00013698,2]
[341876178,1731262245991,-500.0,0.00013698,2]
[341876180,1731262246000,-453.40605092,0.00013698,2]
[341876182,1731262246009,-1389.92,0.00013698,2]
[341876184,1731262246019,-102.31377448,0.00013698,2]
[341876187,1731262246036,-1287.60622552,0.00013698,2]
[341876189,1731262246046,-1389.92,0.00013698,2]
[341876191,1731262246056,-1389.92,0.00013698,2]
[341876193,1731262246067,-1389.92,0.00013698,2]
[341876194,1731262246077,-1389.92,0.00013698,2]
[341876196,1731262246088,-1389.92,0.00013698,2]
[341876198,1731262246098,-1389.92,0.00013698,2]
[341876200,1731262246107,-635.94,0.00013698,2]
[341876202,1731262246117,-1389.92,0.00013698,2]
[341876204,1731262246126,-635.94,0.00013698,2]
[341876206,1731262246136,-1389.92,0.00013698,2]
[341876208,1731262246146,-1389.92,0.00013698,2]
[341876210,1731262246156,-1389.92,0.00013698,2]
[341876212,1731262246166,-635.94,0.00013698,2]
[341876215,1731262246176,-896.52700177,0.00013698,2]
[341876217,1731262246189,-493.39299823,0.00013698,2]
[341876219,1731262246198,-1286.57683713,0.00013698,2]
[341876221,1731262246214,-103.34316287,0.00013698,2]
[341876223,1731262246230,-635.94,0.00013698,2]
[341876224,1731262246251,-1389.92,0.00013698,2]
[341876225,1731262246274,-635.94,0.00013698,2]
[341876226,1731262246296,-1389.92,0.00013698,2]
[341876227,1731262246318,-635.94,0.00013698,2]
[341876228,1731262246341,-635.94,0.00013698,2]
[341876229,1731262246364,-635.94,0.00013698,2]
[341876231,1731262246388,-635.94,0.00013698,2]
[341876233,1731262246409,-635.94,0.00013698,2]
[341876235,1731262246430,-635.94,0.00013698,2]
[341876237,1731262246452,-635.94,0.00013698,2]
[341876239,1731262246472,-635.94,0.00013698,2]
[341876242,1731262246488,-635.94,0.00013698,2]
[341876243,1731262246499,-635.94,0.00013698,2]
[341876245,1731262246508,-635.94,0.00013698,2]
[341876247,1731262246517,-635.94,0.00013698,2]
[341876249,1731262246527,-1563.04,0.00013698,2]
[341876251,1731262246536,-1563.04,0.00013698,2]
[341876253,1731262246546,-1563.04,0.00013698,2]
[341876255,1731262246556,-1563.04,0.00013698,2]
[341876257,1731262246567,-1563.04,0.00013698,2]
[341876259,1731262246577,-1563.04,0.00013698,2]
[341876261,1731262246586,-1563.04,0.00013698,2]
[341876263,1731262246596,-1563.04,0.00013698,2]
[341876265,1731262246606,-1563.04,0.00013698,2]
[341876267,1731262246615,-1563.04,0.00013698,2]
[341876269,1731262246626,-1563.04,0.00013698,2]
[341876271,1731262246636,-1563.04,0.00013698,2]
[341876273,1731262246646,-1563.04,0.00013698,2]
[341876275,1731262246656,-1563.04,0.00013698,2]
[341876277,1731262246666,-1563.04,0.00013698,2]
[341876279,1731262246676,-1563.04,0.00013698,2]
[341876281,1731262246686,-1563.04,0.00013698,2]
[341876283,1731262246696,-32480.63,0.00013698,2]
[341876285,1731262246708,-3287.23,0.00013698,2]
[341876287,1731262246718,-32480.63,0.00013698,2]
[341876289,1731262246729,-3287.23,0.00013698,2]
[341876290,1731262246740,-32480.63,0.00013698,2]
[341876293,1731262246750,-3287.23,0.00013698,2]
[341876295,1731262246760,-32480.63,0.00013698,2]
[341876296,1731262246770,-3287.23,0.00013698,2]
[341876298,1731262246780,-3287.23,0.00013698,2]
[341876300,1731262246790,-3287.23,0.00013698,2]
[341876302,1731262246799,-3287.23,0.00013698,2]
[341876304,1731262246809,-32480.63,0.00013698,2]
[341876306,1731262246818,-3287.23,0.00013698,2]
[341876308,1731262246827,-3287.23,0.00013698,2]
[341876309,1731262246836,-3287.23,0.00013698,2]
[341876310,1731262246845,-3287.23,0.00013698,2]
[341876311,1731262246854,-3287.23,0.00013698,2]
[341876312,1731262246863,-500.0,0.00013698,2]
[341876313,1731262246872,-3287.23,0.00013698,2]
[341876314,1731262246882,-500.0,0.00013698,2]
[341876315,1731262246890,-32480.63,0.00013698,2]
[341876316,1731262246899,-3287.23,0.00013698,2]
[341876317,1731262246908,-500.0,0.00013698,2]
[341876318,1731262246917,-3287.23,0.00013698,2]
[341876319,1731262246926,-32480.63,0.00013698,2]
[341876320,1731262246934,-500.0,0.00013698,2]
[341876321,1731262246946,-32480.63,0.00013698,2]
[341876322,1731262246955,-3287.23,0.00013698,2]
[341876323,1731262246965,-32480.63,0.00013698,2]
[341876324,1731262246978,-3287.23,0.00013698,2]
[341876326,1731262246993,-32480.63,0.00013698,2]
[341876328,1731262247004,-500.0,0.00013698,2]
[341876330,1731262247015,-32480.63,0.00013698,2]
[341876332,1731262247026,-500.0,0.00013698,2]
[341876334,1731262247036,-32480.63,0.00013698,2]
[341876336,1731262247045,-154.45851154,0.00013698,2]
[341876338,1731262247054,-11143.12,0.00013698,2]
[341876340,1731262247063,-32480.63,0.00013698,2]
[341876342,1731262247072,-11143.12,0.00013698,2]
[341876344,1731262247082,-32480.63,0.00013698,2]
[341876346,1731262247091,-11143.12,0.00013698,2]
[341876348,1731262247100,-32480.63,0.00013698,2]
[341876350,1731262247109,-11143.12,0.00013698,2]
[341876352,1731262247118,-32480.63,0.00013698,2]
[341876354,1731262247128,-11143.12,0.00013698,2]
[341876356,1731262247137,-32480.63,0.00013698,2]
[341876358,1731262247146,-11143.12,0.00013698,2]
[341876360,1731262247155,-11143.12,0.00013698,2]
[341876362,1731262247164,-11143.12,0.00013698,2]
[341876364,1731262247173,-11143.12,0.00013698,2]
[341876366,1731262247182,-11143.12,0.00013698,2]
[341876368,1731262247192,-11143.12,0.00013698,2]
[341876370,1731262247201,-11143.12,0.00013698,2]
[341876372,1731262247210,-11143.12,0.00013698,2]
[341876374,1731262247218,-11143.12,0.00013698,2]
[341876376,1731262247229,-11143.12,0.00013698,2]
[341876378,1731262247238,-11143.12,0.00013698,2]
[341876380,1731262247247,-11143.12,0.00013698,2]
[341876382,1731262247256,-957.15,0.00013698,2]
[341876384,1731262247265,-957.15,0.00013698,2]
[341876386,1731262247274,-957.15,0.00013698,2]
[341876388,1731262247283,-4543.65,0.00013698,2]
[341876390,1731262247292,-957.15,0.00013698,2]
[341876392,1731262247301,-4543.65,0.00013698,2]
[341876394,1731262247310,-957.15,0.00013698,2]
[341876396,1731262247319,-4543.65,0.00013698,2]
[341876397,1731262247328,-957.15,0.00013698,2]
[341876399,1731262247338,-4543.65,0.00013698,2]
[341876402,1731262247347,-957.15,0.00013698,2]
[341876403,1731262247356,-4543.65,0.00013698,2]
[341876405,1731262247365,-957.15,0.00013698,2]
[341876407,1731262247375,-4543.65,0.00013698,2]
[341876409,1731262247384,-4543.65,0.00013698,2]
[341876411,1731262247394,-4543.65,0.00013698,2]
[341876413,1731262247403,-4543.65,0.00013698,2]
[341876415,1731262247413,-957.15,0.00013698,2]
[341876417,1731262247422,-4543.65,0.00013698,2]
[341876419,1731262247431,-4543.65,0.00013698,2]
[341876421,1731262247440,-957.15,0.00013698,2]
[341876423,1731262247450,-4543.65,0.00013698,2]
[341876425,1731262247459,-957.15,0.00013698,2]
[341876427,1731262247469,-4543.65,0.00013698,2]
[341876429,1731262247479,-4543.65,0.00013698,2]
[341876431,1731262247489,-4543.65,0.00013698,2]
[341876433,1731262247499,-3887.67,0.00013698,2]
[341876435,1731262247508,-957.15,0.00013698,2]
[341876437,1731262247517,-4543.65,0.00013698,2]
[341876439,1731262247527,-957.15,0.00013698,2]
[341876441,1731262247536,-3887.67,0.00013698,2]
[341876443,1731262247546,-1409.12,0.00013698,2]
[341876446,1731262247555,-957.15,0.00013698,2]
[341876448,1731262247564,-1409.12,0.00013698,2]
[341876450,1731262247574,-3887.67,0.00013698,2]
[341876452,1731262247584,-957.15,0.00013698,2]
[341876454,1731262247593,-1409.12,0.00013698,2]
[341876456,1731262247601,-3887.67,0.00013698,2]
[341876458,1731262247613,-957.15,0.00013698,2]
[341876459,1731262247622,-1409.12,0.00013698,2]
[341876461,1731262247631,-3887.67,0.00013698,2]
[341876463,1731262247640,-957.15,0.00013698,2]
[341876465,1731262247650,-1409.12,0.00013698,2]
[341876467,1731262247659,-3887.67,0.00013698,2]
[341876469,1731262247668,-3887.67,0.00013698,2]
[341876471,1731262247677,-3887.67,0.00013698,2]
[341876474,1731262247687,-3887.67,0.00013698,2]
[341876475,1731262247697,-3887.67,0.00013698,2]
[341876477,1731262247706,-3887.67,0.00013698,2]
[341876479,1731262247715,-3887.67,0.00013698,2]
[341876481,1731262247724,-3887.67,0.00013698,2]
[341876484,1731262247736,-3887.67,0.00013698,2]
[341876486,1731262247745,-3887.67,0.00013698,2]
[341876487,1731262247754,-3887.67,0.00013698,2]
[341876489,1731262247763,-1409.12,0.00013698,2]
[341876491,1731262247773,-3887.67,0.00013698,2]
[341876493,1731262247782,-1409.12,0.00013698,2]
[341876495,1731262247791,-1409.12,0.00013698,2]
[341876497,1731262247800,-1409.12,0.00013698,2]
[341876499,1731262247809,-1409.12,0.00013698,2]
[341876501,1731262247818,-3093.99,0.00013698,2]
[341876503,1731262247827,-1409.12,0.00013698,2]
[341876505,1731262247835,-2799.73,0.00013698,2]
[341876507,1731262247845,-3093.99,0.00013698,2]
[341876509,1731262247854,-1409.12,0.00013698,2]
[341876511,1731262247864,-2799.73,0.00013698,2]
[341876513,1731262247873,-3093.99,0.00013698,2]
[341876515,1731262247882,-1409.12,0.00013698,2]
[341876517,1731262247892,-2799.73,0.00013698,2]
[341876519,1731262247901,-1409.12,0.00013698,2]
[341876521,1731262247910,-3093.99,0.00013698,2]
[341876523,1731262247919,-2799.73,0.00013698,2]
[341876525,1731262247929,-1409.12,0.00013698,2]
[341876527,1731262247939,-3093.99,0.00013698,2]
[341876529,1731262247948,-2799.73,0.00013698,2]
[341876531,1731262247958,-1409.12,0.00013698,2]
[341876533,1731262247966,-3093.99,0.00013698,2]
[341876535,1731262247978,-2799.73,0.00013698,2]
[341876537,1731262247988,-2799.73,0.00013698,2]
[341876539,1731262247997,-3093.99,0.00013698,2]
[341876541,1731262248007,-3093.99,0.00013698,2]
[341876543,1731262248017,-2799.73,0.00013698,2]
[341876545,1731262248027,-3093.99,0.00013698,2]
[341876547,1731262248036,-2799.73,0.00013698,2]
[341876549,1731262248045,-2799.73,0.00013698,2]
[341876551,1731262248054,-1458.93,0.00013698,2]
[341876553,1731262248065,-2799.73,0.00013698,2]
[341876555,1731262248076,-3093.99,0.00013698,2]
[341876557,1731262248085,-1458.93,0.00013698,2]
[341876559,1731262248096,-2799.73,0.00013698,2]
[341876561,1731262248106,-3093.99,0.00013698,2]
[341876563,1731262248116,-3093.99,0.00013698,2]
[341876565,1731262248126,-1458.93,0.00013698,2]
[341876567,1731262248136,-3093.99,0.00013698,2]
[341876569,1731262248145,-1458.93,0.00013698,2]
[341876571,1731262248154,-1458.93,0.00013698,2]
[341876573,1731262248164,-3093.99,0.00013698,2]
[341876575,1731262248173,-1458.93,0.00013698,2]
[341876577,1731262248182,-3093.99,0.00013698,2]
[341876579,1731262248191,-1458.93,0.00013698,2]
[341876581,1731262248200,-3093.99,0.00013698,2]
[341876583,1731262248210,-1458.93,0.00013698,2]
[341876585,1731262248219,-1458.93,0.00013698,2]
[341876587,1731262248231,-5236.18,0.00013698,2]
[341876589,1731262248241,-1458.93,0.00013698,2]
[341876591,1731262248250,-2799.73,0.00013698,2]
[341876593,1731262248259,-5236.18,0.00013698,2]
[341876595,1731262248268,-1458.93,0.00013698,2]
[341876596,1731262248278,-5236.18,0.00013698,2]
[341876599,1731262248287,-2799.73,0.00013698,2]
[341876600,1731262248297,-1458.93,0.00013698,2]
[341876602,1731262248307,-5236.18,0.00013698,2]
[341876604,1731262248316,-5236.18,0.00013698,2]
[341876606,1731262248325,-2799.73,0.00013698,2]
[341876608,1731262248335,-1458.93,0.00013698,2]
[341876610,1731262248345,-2799.73,0.00013698,2]
[341876612,1731262248354,-5236.18,0.00013698,2]
[341876614,1731262248364,-1458.93,0.00013698,2]
[341876616,1731262248373,-2799.73,0.00013698,2]
[341876618,1731262248383,-5236.18,0.00013698,2]
[341876620,1731262248393,-1458.93,0.00013698,2]
[341876622,1731262248404,-5236.18,0.00013698,2]
[341876624,1731262248413,-1458.93,0.00013698,2]
[341876627,1731262248423,-1458.93,0.00013698,2]
[341876629,1731262248433,-5236.18,0.00013698,2]
[341876631,1731262248444,-561.94,0.00013698,2]
[341876633,1731262248455,-561.94,0.00013698,2]
[341876635,1731262248467,-5236.18,0.00013698,2]
[341876638,1731262248482,-561.94,0.00013698,2]
[341876640,1731262248493,-5236.18,0.00013698,2]
[341876642,1731262248504,-561.94,0.00013698,2]
[341876644,1731262248517,-561.94,0.00013698,2]
[341876646,1731262248527,-561.94,0.00013698,2]
[341876648,1731262248537,-5236.18,0.00013698,2]
[341876651,1731262248548,-561.94,0.00013698,2]
[341876653,1731262248558,-5236.18,0.00013698,2]
[341876655,1731262248568,-561.94,0.00013698,2]
[341876657,1731262248579,-5236.18,0.00013698,2]
[341876659,1731262248589,-561.94,0.00013698,2]
[341876661,1731262248601,-5236.18,0.00013698,2]
[341876663,1731262248616,-561.94,0.00013698,2]
[341876666,1731262248627,-5236.18,0.00013698,2]
[341876668,1731262248638,-561.94,0.00013698,2]
[341876670,1731262248650,-561.94,0.00013698,2]
[341876672,1731262248662,-5236.18,0.00013698,2]
[341876674,1731262248673,-561.94,0.00013698,2]
[341876677,1731262248684,-561.94,0.00013698,2]
[341876679,1731262248697,-561.94,0.00013698,2]
[341876681,1731262248710,-561.94,0.00013698,2]
[341876683,1731262248721,-561.94,0.00013698,2]
[341876685,1731262248732,-500.0,0.00013698,2]
[341876687,1731262248743,-500.0,0.00013698,2]
[341876690,1731262248755,-500.0,0.00013698,2]
[341876692,1731262248766,-500.0,0.00013698,2]
[341876694,1731262248777,-500.0,0.00013698,2]
[341876696,1731262248787,-500.0,0.00013698,2]
[341876698,1731262248797,-500.0,0.00013698,2]
[341876700,1731262248806,-500.0,0.00013698,2]
[341876702,1731262248817,-500.0,0.00013698,2]
[341876704,1731262248828,-500.0,0.00013698,2]
[341876706,1731262248838,-500.0,0.00013698,2]
[341876709,1731262248849,-500.0,0.00013698,2]
[341876711,1731262248859,-500.0,0.00013698,2]
[341876713,1731262248869,-545.08,0.00013698,2]
[341876715,1731262248880,-2896.73,0.00013698,2]
[341876717,1731262248891,-2896.73,0.00013698,2]
[341876719,1731262248902,-2896.73,0.00013698,2]
[341876721,1731262248913,-2896.73,0.00013698,2]
[341876723,1731262248923,-2896.73,0.00013698,2]
[341876725,1731262248934,-2896.73,0.00013698,2]
[341876728,1731262248945,-2896.73,0.00013698,2]
[341876730,1731262248955,-2896.73,0.00013698,2]
[341876732,1731262248966,-2896.73,0.00013698,2]
[341876734,1731262248976,-885.94,0.00013698,2]
[341876736,1731262248990,-2896.73,0.00013698,2]
[341876738,1731262249001,-885.94,0.00013698,2]
[341876740,1731262249012,-2896.73,0.00013698,2]
[341876743,1731262249024,-394.61073616,0.00013698,2]
[341876745,1731262249035,-885.94,0.00013698,2]
[341876747,1731262249046,-2896.73,0.00013698,2]
[341876749,1731262249056,-885.94,0.00013698,2]
[341876751,1731262249066,-2896.73,0.00013698,2]
[341876753,1731262249078,-885.94,0.00013698,2]
[341876756,1731262249089,-2896.73,0.00013698,2]
[341876758,1731262249099,-885.94,0.00013698,2]
[341876760,1731262249110,-2896.73,0.00013698,2]
[341876762,1731262249120,-2896.73,0.00013698,2]
[341876764,1731262249130,-885.94,0.00013698,2]
[341876766,1731262249140,-2896.73,0.00013698,2]
[341876768,1731262249150,-885.94,0.00013698,2]
[341876770,1731262249160,-885.94,0.00013698,2]
[341876772,1731262249172,-885.94,0.00013698,2]
[341876775,1731262249182,-885.94,0.00013698,2]
[341876777,1731262249192,-885.94,0.00013698,2]
[341876779,1731262249202,-885.94,0.00013698,2]
[341876781,1731262249213,-885.94,0.00013698,2]
[341876783,1731262249223,-885.94,0.00013698,2]
[341876785,1731262249235,-200.0,0.00013699,2]
[341876787,1731262249246,-300.0,0.00013699,2]
[341876789,1731262249256,-375.0,0.000137,2]
[341876792,1731262249268,-1100.0,0.000137,5]
[341876794,1731262249279,-5927.0,0.00013701,2]
[341876796,1731262249289,-150.0,0.00013701,2]
[341876798,1731262249300,-1159.0,0.00013701,2]
[341876800,1731262249314,-157.1,0.0001377,2]
[341876802,1731262249327,-167.19595899,0.00013784,2]
[341876805,1731262249337,-1400.0,0.000138,5]
[341876807,1731262249347,-453.0,0.00013803,2]
[341876809,1731262249357,-1254.0,0.00013803,2]
[341876811,1731262249367,-150.0,0.00013803,2]
[341876813,1731262249379,-559.0,0.00013803,2]
[341876815,1731262249389,-1990.0,0.00013803,2]
[341876817,1731262249400,-1922.0,0.00013803,2]
[341876819,1731262249411,-1259.0,0.00013803,2]
[341876821,1731262249424,-921.0,0.00013803,2]
[341876823,1731262249436,-2910.0,0.00013803,2]
[341876826,1731262249447,-814.0,0.00013803,2]
[341876828,1731262249458,-3465.0,0.00013803,2]
[341876830,1731262249468,-909.98,0.00013809,2]
[341876832,1731262249481,-717.11,0.00013809,2]
[341876834,1731262249492,-602.07,0.00013809,2]
[341876836,1731262249502,-829.77,0.00013809,2]
[341876838,1731262249513,-1840.89,0.00013809,2]
[341876840,1731262249523,-500.0,0.00013809,2]
[341876843,1731262249538,-1998.44,0.00013809,2]
[341876845,1731262249548,-922.8,0.00013809,2]
[341876847,1731262249558,-515.1,0.00013809,2]
[341876849,1731262249569,-3011.47,0.00013809,2]
[341876851,1731262249578,-1173.72,0.00013809,2]
[341876853,1731262249589,-3057.12,0.00013809,2]
[341876855,1731262249603,-777.06,0.00013809,2]
[341876858,1731262249614,-575.21,0.00013809,2]
[341876860,1731262249625,-2249.62,0.00013809,2]
[341876862,1731262249637,-500.0,0.00013809,2]
[341876864,1731262249646,-633.6,0.00013809,2]
[341876866,1731262249656,-4543.65,0.00013809,2]
[341876868,1731262249667,-1409.12,0.00013809,2]
[341876870,1731262249676,-3093.99,0.00013809,2]
[341876872,1731262249687,-1800.0,0.000139,5]
[341876874,1731262249696,-1000.0,0.0001391,2]
[341876876,1731262249706,-150.0,0.00013935,2]
[341876878,1731262249718,-167.19595899,0.0001397,2]
[341876881,1731262249729,-500.0,0.00014,2]
[341876883,1731262249741,-167.19595899,0.00014156,2]
[341876884,1731262249752,-162.287061,0.00014209,2]
[341876885,1731262249762,-157.1,0.00014257,2]
[341876886,1731262249772,-160.72,0.00014316,2]
[341876887,1731262249783,-167.19595899,0.00014342,2]
[341876888,1731262249793,-521.41,0.00014377,2]
[341876889,1731262249803,-300.0,0.000144,5]
[341876890,1731262249813,-300.0,0.000145,5]
[341876891,1731262249824,-915.91,0.0001452,2]
[341876892,1731262249834,-167.19595899,0.00014528,2]
[341876893,1731262249844,-426.22825879,0.0001459,2]
[341876894,1731262249854,-300.0,0.000146,5]
[341876896,1731262249863,-300.0,0.000147,5]
[341876898,1731262249874,-255.0,0.00014712,2]
[341876900,1731262249884,-167.19595899,0.00014714,2]
[341876902,1731262249894,-150.0,0.00014727,2]
[341876905,1731262249904,-150.0,0.00014727,2]
[341876907,1731262249914,-150.0,0.00014729,2]
[341876909,1731262249924,-150.0,0.0001473,2]
[341876911,1731262249934,-150.0,0.00014734,2]
[341876913,1731262249944,-150.0,0.00014737,2]
[341876915,1731262249954,-150.0,0.00014739,2]
[341876917,1731262249965,-150.0,0.00014742,2]
[341876919,1731262249975,-157.1,0.00014744,2]
[341876921,1731262249987,-150.0,0.00014748,2]
[341876924,1731262249997,-150.0,0.00014748,2]
[341876926,1731262250007,-150.0,0.00014752,2]
[341876928,1731262250018,-150.0,0.00014755,2]
[341876930,1731262250028,-150.0,0.00014759,2]
[341876932,1731262250039,-150.0,0.00014759,2]
[341876934,1731262250049,-150.0,0.00014759,2]
[341876937,1731262250064,-150.0,0.00014761,2]
[341876939,1731262250075,-150.0,0.00014763,2]
[341876941,1731262250085,-150.0,0.00014763,2]
[341876943,1731262250095,-150.0,0.00014774,2]
[341876946,1731262250106,-150.0,0.00014776,2]
[341876948,1731262250116,-150.0,0.00014778,2]
[341876950,1731262250127,-150.0,0.00014781,2]
[341876952,1731262250137,-150.0,0.00014784,2]
[341876954,1731262250148,-150.0,0.00014787,2]
[341876956,1731262250158,-150.0,0.00014788,2]
[341876958,1731262250168,-150.0,0.00014789,2]
[341876960,1731262250179,-150.0,0.00014796,2]
[341876962,1731262250189,-150.0,0.00014797,2]
[341876965,1731262250199,-879.0,0.000148,5]
[341876967,1731262250210,-150.0,0.00014805,2]
[341876969,1731262250220,-150.0,0.00014814,2]
[341876971,1731262250231,-150.0,0.00014814,2]
[341876973,1731262250247,-150.0,0.00014815,2]
[341876975,1731262250257,-150.0,0.00014818,2]
[341876977,1731262250268,-150.0,0.0001482,2]
[341876979,1731262250278,-150.0,0.0001482,2]
[341876982,1731262250289,-150.0,0.00014822,2]
[341876984,1731262250300,-5236.18,0.00014822,2]
[341876986,1731262250310,-2896.73,0.00014822,2]
[341876988,1731262250321,-150.0,0.00014823,2]
[341876990,1731262250331,-150.63937333,0.00014823,2]
[341876992,1731262250342,-500.0,0.00014823,2]
[341876994,1731262250352,-150.0,0.00014823,2]
[341876996,1731262250363,-160.89077142,0.00014823,2]
[341876998,1731262250373,-150.0,0.00014823,2]
[341877001,1731262250383,-257.14326239,0.00014823,2]
[341877003,1731262250394,-150.0,0.00014823,2]
[341877005,1731262250404,-608.0,0.00014823,2]
[341877007,1731262250414,-150.80335562,0.00014823,2]
[341877009,1731262250425,-500.0,0.00014823,2]
[341877011,1731262250436,-716.0,0.00014823,2]
[341877013,1731262250446,-500.0,0.00014823,2]
[341877015,1731262250456,-500.0,0.00014823,2]
[341877017,1731262250466,-150.0,0.00014823,2]
[341877019,1731262250476,-1181.0,0.00014823,2]
[341877022,1731262250490,-1505.0,0.00014823,2]
[341877024,1731262250500,-150.0,0.00014826,2]
[341877026,1731262250509,-150.0,0.00014828,2]
[341877028,1731262250519,-150.0,0.00014829,2]
[341877030,1731262250530,-1439.59,0.0001483,2]
[341877032,1731262250539,-150.0,0.00014831,2]
[341877034,1731262250551,-150.0,0.00014832,2]
[341877036,1731262250561,-150.0,0.00014833,2]
[341877038,1731262250571,-150.0,0.00014837,2]
[341877040,1731262250581,-150.0,0.00014837,2]
[341877042,1731262250591,-150.0,0.00014837,2]
[341877044,1731262250601,-150.0,0.0001484,2]
[341877046,1731262250613,-150.0,0.00014846,2]
[341877048,1731262250623,-263.44656769,0.00014846,2]
[341877050,1731262250633,-150.0,0.00014847,2]
[341877052,1731262250643,-150.0,0.00014847,2]
[341877054,1731262250654,-12026.30245795,0.0001485,2]
[341877057,1731262250664,-150.0,0.0001485,2]
[341877059,1731262250673,-150.0,0.00014852,2]